Workbook

Sheet ~$送 货 单 (hidden)
A2: Administrator
A3: Administrator

Sheet 多鲁镇 (hidden)
A1: 送 货 单
A2: 单位名称：洛浦县阿其克乡卫生院 | F2: 申请日期：
A3: 序号 | B3: 货名 | C3: 数量 | D3: 单价 | E3: 金额 | F3: 用途 | G3: 客户签名
A4: 1 | B4: 80瓦功放 | C4: 1 | D4: 1100 | E4: =D4*C4 -> 1100
A5: 2 | B5: 10瓦吸顶音响 | C5: 4 | D5: 220 | E5: 880
A6: 3 | B6: 2*100芯音响线（米） | C6: 56 | D6: 4 | E6: 224
A7: 4 | B7: 有线会议麦 | C7: 1 | D7: 290 | E7: 290
A8: 5
A9: 6
A10: 合计 | C10: =SUM(E4:E9) -> 2494 | F10: 金额大写：贰仟肆佰玖拾肆元整
A11: 单位主要领导（意见）签名：
A13: 送 货 单
A14: 单位名称： | F14: 申请日期：
A15: 序号 | B15: 货名 | C15: 数量 | D15: 单价 | E15: 金额 | F15: 用途 | G15: 客户签名
A16: 1
A17: 2
A18: 3
A19: 4
A20: 5
A21: 6
A22: 合计 | F22: 金额大写：
A23: 单位主要领导（意见）签名：
A24: 送 货 单
A25: 单位名称：洛浦县布亚乡卫生院 | F25: 申请日期：
A26: 序号 | B26: 货名 | C26: 数量 | D26: 单价 | E26: 金额 | F26: 用途 | G26: 客户签名
A27: 1 | B27: 光缆光纤 | C27: 265 | D27: 4.5 | E27: =D27*C27 -> 1192.5
A28: 2 | B28: 千兆收发器（一对） | C28: 1 | D28: 650 | E28: 650
A29: 3 | B29: 光纤跳线 | C29: 2 | D29: 20 | E29: 40
A30: 4 | B30: 光缆光纤终端盒 | C30: 2 | D30: 125 | E30: 250
A31: 5 | B31: 千兆交换机（8口） | C31: 1 | D31: 320 | E31: 320
A32: 6
A33: 合计 | C33: =SUM(E27:E32) -> 2452.5 | F33: 金额大写：贰仟肆佰伍拾贰元伍角元整
A34: 单位验收人（意见）签名：
A36: 送 货 单
A37: 单位名称：洛浦县布亚乡卫生院 | F37: 申请日期：
A38: 序号 | B38: 货名 | C38: 数量 | D38: 单价 | E38: 金额 | F38: 用途 | G38: 客户签名
A39: 1 | B39: 10瓦吸顶音响 | C39: 8 | D39: 195 | E39: =D39*C39 -> 1560
A40: 2 | B40: 350瓦六分区合并功放 | C40: 1 | D40: 1850 | E40: 1850
A41: 3 | B41: 2*100芯音响线（米） | C41: 230 | D41: 2.5 | E41: 575
A42: 4 | B42: 有线会议麦 | C42: 1 | D42: 290 | E42: 290
A43: 5
A44: 6
A45: 合计 | E45: =SUM(E39:E44) -> 4275 | F45: 金额大写：
A46: 单位验收人（意见）签名：
A47: 送 货 单
A48: 单位名称：洛浦县布亚乡卫生院 | F48: 送货日期：
A49: 序号 | B49: 货名 | C49: 数量 | D49: 单价 | E49: 金额 | F49: 用途 | G49: 客户签名
A50: 1 | B50: 12寸专用音响 | C50: 4 | D50: 1930 | E50: =D50*C50 -> 7720
A51: 2 | B51: 350专用瓦功放 | C51: 2 | D51: 3220 | E51: 6440
A52: 3 | B52: 专业音响壁挂架 | C52: 2 | D52: 180 | E52: 360
A53: 4 | B53: 300支音响线 | C53: 180 | D53: 2.5 | E53: 450
A54: 5 | B54: 8路调音台 | C54: 1 | D54: 1350 | E54: 1350
A55: 6 | B55: 一拖四会议麦 | C55: 1 | D55: 3750 | E55: 3750
A56: 7 | B56: 一拖二手持麦 | C56: 1 | D56: 1650 | E56: 1650
A57: 8 | B57: 电源时序器 | C57: 1 | D57: 1250 | E57: 1250
A58: 9 | B58: 音响机柜 | C58: 1 | D58: 380 | E58: 380
A59: 10
A60: 合计 | C60: =SUM(E50:E58) -> 23350 | F60: 金额大写：贰万叁仟叁佰伍拾元整
A61: 单位验收人（意见）签名：
A63: 送 货 单
A64: 单位名称：洛浦县布亚乡卫生院 | F64: 申请日期：
A65: 序号 | B65: 货名 | C65: 数量 | D65: 单价 | E65: 金额 | F65: 用途 | G65: 客户签名
A66: 1 | B66: 六类水晶头 | C66: 1 | D66: 160 | E66: =D66*C66 -> 160
A67: 2 | B67: 10位插线板 | C67: 4 | D67: 76 | E67: 304
A68: 3 | B68: 8口交换机 | C68: 2 | D68: 320 | E68: 640
A69: 4 | B69: 网络网线 | C69: 618 | D69: 6 | E69: 3708
A70: 5 | B70: 2芯电线 | C70: 13 | D70: 5 | E70: 65
A71: 6 | B71: 不锈钢电线槽 （20MM） | C71: 13 | D71: 38 | E71: 494
A72: 7 | B72: 不锈钢电线槽 （30MM） | C72: 2 | D72: 45 | E72: 90
A73: 8 | B73: 20mm*10mm PVC压条 | C73: 41 | D73: 5 | E73: 205
A74: 合计 | C74: =SUM(E66:E73) -> 5666 | F74: 金额大写：伍仟陆佰陆拾陆元整
A75: 单位验收人（意见）签名：
A79: 送 货 单
A80: 单位名称：洛浦县布亚乡卫生院 | F80: 申请日期：
A81: 序号 | B81: 货名 | C81: 数量 | D81: 单价 | E81: 金额 | F81: 用途 | G81: 客户签名
A82: 1 | B82: 六类水晶头 | C82: 1 | D82: 160 | E82: =D82*C82 -> 160
A83: 2 | B83: 10位插线板 | C83: 4 | D83: 76 | E83: 304
A84: 3 | B84: 8口交换机 | C84: 2 | D84: 320 | E84: 640
A85: 4 | B85: 网络网线 | C85: 618 | D85: 6 | E85: 3708
A86: 5 | B86: 2芯电线 | C86: 13 | D86: 5 | E86: 65
A87: 6 | B87: 不锈钢电线槽 （20MM） | C87: 13 | D87: 38 | E87: 494
A88: 7 | B88: 不锈钢电线槽 （30MM） | C88: 2 | D88: 45 | E88: 90
A89: 8 | B89: 20mm*10mm PVC压条 | C89: 41 | D89: 5 | E89: 205
A90: 合计 | C90: =SUM(E82:E89) -> 5666 | F90: 金额大写：伍仟陆佰陆拾陆元整
A91: 单位验收人（意见）签名：
A95: 送 货 单
A96: 单位名称：洛浦县布亚乡卫生院 | F96: 申请日期：
A97: 序号 | B97: 货名 | C97: 数量 | D97: 单价 | E97: 金额 | F97: 用途 | G97: 客户签名
A98: 1 | B98: PVC压条 20MM*10MM | C98: 6 | D98: 5 | E98: =D98*C98 -> 30
A99: 2 | B99: 地板电线槽（2MM) | C99: 6 | D99: 38 | E99: 228
A100: 3 | B100: PVC压条100MM*40MM | C100: 12 | D100: 44 | E100: 528
A101: 4 | B101: 六类网络网线 | C101: 50 | D101: 6 | E101: 300
A102: 5 | B102: 8口千兆交换机 | C102: 1 | D102: 320 | E102: 320
A103: 6
A104: 7
A105: 8
A106: 合计 | C106: =SUM(E98:E105) -> 1406 | F106: 金额大写：壹仟肆佰零陆元整
A107: 单位验收人（意见）签名：
A112: 送 货 单
A113: 单位名称：洛浦县多鲁镇卫生院 | F113: 申请日期：
A114: 序号 | B114: 货名 | C114: 数量 | D114: 单价 | E114: 金额 | F114: 用途 | G114: 客户签名
A115: 1 | B115: 网络机柜 | C115: 1 | D115: 300 | E115: =D115*C115 -> 300
A116: 2 | B116: 200万网络摄像头 | C116: 4 | D116: 580 | E116: 2320
A117: 3 | B117: PVC管子 （20mm） | C117: 46 | D117: 8 | E117: 368
A118: 4 | B118: 12V 监控电源适配器 | C118: 4 | D118: 50 | E118: 200
A119: 5 | B119: 监控电源防水盒子 | C119: 4 | D119: 20 | E119: 80
A120: 6 | B120: 超五类网络网线 | C120: 180 | D120: 4 | E120: 720
A121: 7 | B121: 2芯电线 | C121: 115 | D121: 3 | E121: 345
A122: 8 | B122: 16口千兆交换机 | C122: 1 | D122: 580 | E122: 580
A123: 合计 | C123: =SUM(E115:E122) -> 4913 | F123: 金额大写：肆仟玖佰壹拾叁元整
A124: 单位验收人（意见）签名：

Sheet 8896元整 (hidden)
A1: 送 货 单
A2: 单位名称：洛浦县布亚乡卫生院 | F2: 申请日期：
A3: 序号 | B3: 货名 | C3: 数量 | D3: 单价 | E3: 金额 | F3: 用途 | G3: 客户签名
A4: 1 | B4: 办公鼠标 | C4: 1 | D4: 40 | E4: =D4*C4 -> 40
A5: 2 | B5: CL2451粉盒 | C5: 2 | D5: 255 | E5: 510
A6: 3 | B6: 0388碳粉 | C6: 8 | D6: 50 | E6: 400
A7: 4 | B7: 1610碳粉 | C7: 4 | D7: 50 | E7: 200
A8: 6 | B8: 013碳粉 | C8: 6 | D8: 50 | E8: 300
A9: 7 | B9: PD-213芯片 | C9: 2 | D9: 50 | E9: 100
A10: 8 | B10: 680彩色墨盒 | C10: 2 | D10: 290 | E10: 580
A11: 9 | B11: 680黑色墨盒 | C11: 2 | D11: 290 | E11: 580
A12: 10 | B12: 8口千兆交换机 | C12: 1 | D12: 480 | E12: 480
A13: 11 | B13: 630K色带支架 | C13: 1 | D13: 46 | E13: 46
A14: 12 | B14: 206硒鼓 | C14: 3 | D14: 280 | E14: 840
A15: 13 | B15: 310BK黑色硒鼓 | C15: 1 | D15: 250 | E15: 250
A16: 14 | B16: 311C蓝色硒鼓 | C16: 1 | D16: 250 | E16: 250
A17: 15 | B17: 313M红色硒鼓 | C17: 1 | D17: 250 | E17: 250
A18: 16 | B18: 312Y黄色硒鼓 | C18: 1 | D18: 250 | E18: 250
A19: 17 | B19: ADDT-220s 硒鼓 | C19: 1 | D19: 280 | E19: 280
A20: 18 | B20: 打印机定影膜 | C20: 1 | D20: 240 | E20: 240
A21: 19 | B21: 0388硒鼓 | C21: 5 | D21: 240 | E21: 1200
A22: 20 | B22: CH256C硒鼓 | C22: 1 | D22: 360 | E22: 360
A23: 21 | B23: 2451硒鼓 | C23: 3 | D23: 260 | E23: 780
A24: 22 | B24: 24口千兆交换机 | C24: 1 | D24: 960 | E24: 960
A25: 合计 | C25: =SUM(E4:E24) -> 8896 | F25: 金额大写：捌仟捌佰玖拾陆元整
A26: 单位验收人（意见）签名：

Sheet 2200元整 (hidden)
A1: 送 货 单
A2: 单位名称：洛浦县布亚乡卫生院 | F2: 申请日期：
A3: 序号 | B3: 货名 | C3: 数量 | D3: 单价 | E3: 金额 | F3: 用途 | G3: 客户签名
A4: 1 | B4: 社保卡读卡阅读器 | C4: 1 | D4: 2200 | E4: =D4*C4 -> 2200
A5: 2
A6: 3
A7: 4
A8: 5
A9: 6
A10: 合计 | C10: =SUM(E4:E9) -> 2200 | F10: 金额大写：贰仟贰佰元整
A11: 单位验收人（意见）签名：

Sheet 3050元整 (hidden)
A1: 送 货 单
A2: 单位名称：洛浦县布亚乡卫生院 | F2: 申请日期：
A3: 序号 | B3: 货名 | C3: 数量 | D3: 单价 | E3: 金额 | F3: 用途 | G3: 客户签名
A4: 1 | B4: CL2451粉盒 | C4: 4 | D4: 220 | E4: =D4*C4 -> 880
A5: 2 | B5: 0388碳粉 | C5: 2 | D5: 50 | E5: 100
A6: 3 | B6: 013碳粉 | C6: 3 | D6: 50 | E6: 150
A7: 4 | B7: 313M红色硒鼓 | C7: 1 | D7: 250 | E7: 250
A8: 5 | B8: 311C蓝色硒鼓 | C8: 1 | D8: 250 | E8: 250
A9: 6 | B9: 312Y黄色硒鼓 | C9: 1 | D9: 250 | E9: 250
A10: 7 | B10: 310BK 黑色硒鼓 | C10: 1 | D10: 250 | E10: 250
A11: 8 | B11: 0388硒鼓 | C11: 2 | D11: 220 | E11: 440
A12: 9 | B12: LD2451硒鼓 | C12: 2 | D12: 240 | E12: 480
A13: 合计 | C13: =SUM(E4:E12) -> 3050 | F13: 金额大写：叁仟零伍拾元整
A14: 单位验收人（意见）签名：

Sheet 8655 (hidden)
A1: 送 货 单
A2: 单位名称：洛浦县布亚乡卫生院 | F2: 申请日期：
A3: 序号 | B3: 货名 | C3: 数量 | D3: 单价 | E3: 金额 | F3: 用途 | G3: 客户签名
A4: 1 | B4: 47黑色墨盒 | C4: 1 | D4: 250 | E4: =D4*C4 -> 250
A5: 2 | B5: 47彩色墨盒 | C5: 1 | D5: 250 | E5: 250
A6: 3 | B6: 惠普离合器 | C6: 1 | D6: 230 | E6: 230
A7: 4 | B7: 兄弟一体机高压板 | C7: 1 | D7: 195 | E7: 195
A8: 5 | B8: CL2451粉盒 | C8: 4 | D8: 220 | E8: 880
A9: 6 | B9: 0388碳粉 | C9: 3 | D9: 50 | E9: 150
A10: 7 | B10: 1610碳粉 | C10: 3 | D10: 50 | E10: 150
A11: 8 | B11: ADDT-220芯片 | C11: 1 | D11: 50 | E11: 50
A12: 9 | B12: PD-213芯片 | C12: 1 | D12: 50 | E12: 50
A13: 10 | B13: 680黑色墨盒 | C13: 1 | D13: 290 | E13: 290
A14: 11 | B14: 680彩色墨盒 | C14: 1 | D14: 290 | E14: 290
A15: 12 | B15: 0912套鼓 | C15: 1 | D15: 220 | E15: 220
A16: 13 | B16: 630K色带支架 | C16: 5 | D16: 46 | E16: 230
A17: 14 | B17: 206硒鼓 | C17: 3 | D17: 280 | E17: 840
A18: 15 | B18: 310BK黑色硒鼓 | C18: 1 | D18: 250 | E18: 250
A19: 16 | B19: 311C蓝色硒鼓 | C19: 1 | D19: 250 | E19: 250
A20: 17 | B20: 312Y黄色硒鼓 | C20: 1 | D20: 250 | E20: 250
A21: 18 | B21: 313M红色硒鼓 | C21: 1 | D21: 250 | E21: 250
A22: 19 | B22: ADDT-220s 硒鼓 | C22: 3 | D22: 280 | E22: 840
A23: 20 | B23: 2612套鼓 | C23: 1 | D23: 220 | E23: 220
A24: 21 | B24: 0388套鼓 | C24: 6 | D24: 220 | E24: 1320
A25: 22 | B25: 2451硒鼓 | C25: 5 | D25: 240 | E25: 1200
A26: 合计 | C26: =SUM(E4:E25) -> 8655 | F26: 金额大写：肆仟陆佰伍拾伍元整
A27: 单位验收人（意见）签名：

Sheet 4913 (hidden)
A1: 送 货 单
A2: 单位名称：洛浦县多鲁镇卫生院 | F2: 申请日期：
A3: 序号 | B3: 货名 | C3: 数量 | D3: 单价 | E3: 金额 | F3: 用途 | G3: 客户签名
A4: 1 | B4: 网络机柜 | C4: 1 | D4: 300 | E4: =D4*C4 -> 300
A5: 2 | B5: 200万网络摄像头 | C5: 4 | D5: 580 | E5: 2320
A6: 3 | B6: PVC管子 （20mm） | C6: 46 | D6: 8 | E6: 368
A7: 4 | B7: 12V 监控电源适配器 | C7: 4 | D7: 50 | E7: 200
A8: 5 | B8: 监控电源防水盒子 | C8: 4 | D8: 20 | E8: 80
A9: 6 | B9: 超五类网络网线 | C9: 180 | D9: 4 | E9: 720
A10: 7 | B10: 2芯电线 | C10: 115 | D10: 3 | E10: 345
A11: 8 | B11: 16口千兆交换机 | C11: 1 | D11: 580 | E11: 580
A12: 合计 | C12: =SUM(E4:E11) -> 4913 | F12: 金额大写：肆仟玖佰壹拾叁元整
A13: 单位验收人（意见）签名：

Sheet 5700元 (hidden)
A1: 送 货 单
A2: 单位名称：洛浦县布亚乡卫生院 | F2: 申请日期：
A3: 序号 | B3: 货名 | C3: 数量 | D3: 单价 | E3: 金额 | F3: 用途 | G3: 客户签名
A4: 1 | B4: 定影组件 | C4: 1 | D4: 365 | E4: =D4*C4 -> 365
A5: 2 | B5: CL2451粉盒 | C5: 1 | D5: 255 | E5: 255
A6: 3 | B6: 0388碳粉 | C6: 12 | D6: 50 | E6: 600
A7: 4 | B7: 013碳粉 | C7: 6 | D7: 50 | E7: 300
A8: 6 | B8: 313M红色硒鼓 | C8: 1 | D8: 250 | E8: 250
A9: 7 | B9: 312Y黄色硒鼓 | C9: 1 | D9: 250 | E9: 250
A10: 8 | B10: 313M红色硒鼓 | C10: 1 | D10: 250 | E10: 250
A11: 9 | B11: 311C蓝色硒鼓 | C11: 1 | D11: 250 | E11: 250
A12: 10 | B12: 惠普打印机定影膜 | C12: 1 | D12: 240 | E12: 240
B13: 0388套鼓 | C13: 9 | D13: 240 | E13: 2160
A14: 11 | B14: DL2451硒鼓 | C14: 3 | D14: 260 | E14: 780
A16: 合计 | C16: =SUM(E4:E14) -> 5700 | F16: 金额大写：捌仟捌佰玖拾陆元整
A17: 单位验收人（意见）签名：

Sheet Sheet7 (hidden)

Sheet 5562元 (hidden)
A1: 送 货 单
A2: 单位名称：洛浦县布亚乡卫生院 | E2: 申请日期：
A3: 序号 | B3: 货名 | C3: 数量 | D3: 单价 | E3: 金额 | F3: 备注
A4: 1 | B4: 高压板 | C4: 1 | D4: 195 | E4: =D4*C4 -> 195
A5: 2 | B5: 2451粉盒 | C5: 2 | D5: 255 | E5: 510
A6: 3 | B6: 0388碳粉 | C6: 21 | D6: 50 | E6: 1050
A7: 4 | B7: 013碳粉 | C7: 18 | D7: 50 | E7: 900
A8: 6 | B8: 1035硒鼓 | C8: 1 | D8: 240 | E8: 240
A9: 7 | B9: 1035粉盒 | C9: 1 | D9: 240 | E9: 240
A10: 8 | B10: 处理器散热器 | C10: 1 | D10: 95 | E10: 95
A11: 9 | B11: 240G固态硬盘 | C11: 2 | D11: 435 | E11: 870
A12: 10 | B12: USB 移动刻录机 | C12: 1 | D12: 330 | E12: 330
A13: 11 | B13: ADDT-220s 硒鼓 | C13: 1 | D13: 320 | E13: 320
A14: 12 | B14: 1600K色带支架 | C14: 2 | D14: 46 | E14: 92
A15: 13 | B15: 0388硒鼓 | C15: 3 | D15: 240 | E15: 720
A16: 合计 | C16: =SUM(E4:E15) -> 5562
A17: 单位验收人签名：

Sheet 4324元 (hidden)
A1: 送 货 单
A2: 单位名称：洛浦县布亚乡卫生院 | F2: 申请日期：
A3: 序号 | B3: 货名 | C3: 数量 | D3: 单价 | E3: 金额 | F3: 用途
A4: 1 | B4: 0388碳粉 | C4: 1 | D4: 50 | E4: =D4*C4 -> 50
A5: 2 | B5: 1610碳粉 | C5: 1 | D5: 50 | E5: 50
A6: 3 | B6: 013碳粉 | C6: 1 | D6: 50 | E6: 50
A7: 4 | B7: 电脑主机电源 | C7: 1 | D7: 260 | E7: 260
A8: 5 | B8: 680彩色墨盒 | C8: 2 | D8: 290 | E8: 580
A9: 6 | B9: 680黑色墨盒 | C9: 2 | D9: 290 | E9: 580
A10: 7 | B10: 针式打印机传感器 | C10: 2 | D10: 135 | E10: 270
A11: 8 | B11: 定影器组件 | C11: 1 | D11: 365 | E11: 365
A12: 9 | B12: 1106打印机主板 | C12: 1 | D12: 345 | E12: 345
A13: 10 | B13: 1600K 色带支架 | C13: 2 | D13: 46 | E13: 92
A14: 11 | B14: 206硒鼓 | C14: 1 | D14: 320 | E14: 320
A15: 12 | B15: 激光打印机离合器 | C15: 1 | D15: 230 | E15: 230
A16: 13 | B16: ADDT-220s 硒鼓 | C16: 1 | D16: 320 | E16: 320
A17: 14 | B17: 1600K色带支架 | C17: 2 | D17: 46 | E17: 92
A18: 15 | B18: 0388硒鼓 | C18: 3 | D18: 240 | E18: 720
A19: 合计 | C19: =SUM(E4:E18) -> 4324
A20: 单位收货人签名：

Sheet 5779元 (hidden)
A1: 送 货 单
A2: 单位名称：洛浦县布亚乡卫生院 | E2: 申请日期：
A3: 序号 | B3: 货名 | C3: 数量 | D3: 单价 | E3: 金额 | F3: 用途
A4: 1 | B4: 1800PRO 无线键盘套件 | C4: 1 | D4: 180 | E4: =D4*C4 -> 180
A5: 2 | B5: 电脑主机几机箱 | C5: 1 | D5: 180 | E5: 180
A6: 3 | B6: W1003AC硒鼓 | C6: 2 | D6: 240 | E6: 480
A7: 4 | B7: 华硕内置刻录机 | C7: 1 | D7: 360 | E7: 360
A8: 6 | B8: 一拖二无线话筒 | C8: 1 | D8: 1800 | E8: 1800
A9: 7 | B9: 680彩色墨盒 | C9: 2 | D9: 290 | E9: 580
A10: 8 | B10: 680黑色墨盒 | C10: 2 | D10: 290 | E10: 580
A11: 9 | B11: 处理器散热器 | C11: 1 | D11: 95 | E11: 95
A12: 10 | B12: 240G 高速固态硬盘 | C12: 1 | D12: 435 | E12: 435
A13: 11 | B13: 5口交换机 | C13: 1 | D13: 135 | E13: 135
A14: 12 | B14: 综合线电源一体线 | C14: 13 | D14: 4 | E14: 52
A15: 13 | B15: 630K 色带支架 | C15: 2 | D15: 46 | E15: 92
A16: 14 | B16: USB 移动刻录机 | C16: 1 | D16: 330 | E16: 330
A17: 15 | B17: 惠普打印机定影膜 | C17: 1 | D17: 240 | E17: 240
A18: 16 | B18: 0388硒鼓 | C18: 1 | D18: 240 | E18: 240
A19: 合计 | C19: =SUM(E4:E18) -> 5779
A20: 单位收货人签名：

Sheet 9603元 (hidden)
A1: 送 货 单
A2: 单位名称：洛浦县布亚乡卫生院 | E2: 申请日期：
A3: 序号 | B3: 货名 | C3: 数量 | D3: 单价 | E3: 金额 | F3: 用途
A4: 1 | B4: OKI针式打印机传感器 | C4: 1 | D4: 135 | E4: =D4*C4 -> 135
A5: 2 | B5: 0912硒鼓 | C5: 1 | D5: 240 | E5: 240
A6: 3 | B6: 六类网络网线 | C6: 283 | D6: 6 | E6: 1698
A7: 4 | B7: 2芯电线 | C7: 16 | D7: 5 | E7: 80
A8: 6 | B8: 针式打印机电源板 | C8: 1 | D8: 230 | E8: 230
A9: 7 | B9: 针式打印机打印头 | C9: 1 | D9: 360 | E9: 360
A10: 8 | B10: 630K 色带支架 | C10: 5 | D10: 46 | E10: 230
A11: 9 | B11: 激光打印机电源板 | C11: 1 | D11: 340 | E11: 340
A12: 10 | B12: 激光打印机离合器 | C12: 2 | D12: 230 | E12: 460
A13: 11 | B13: ADDT-220s 硒鼓 | C13: 2 | D13: 320 | E13: 640
B14: 打印机定影膜 | C14: 1 | D14: 240 | E14: 240
A15: 12 | B15: 2612硒鼓 | C15: 4 | D15: 240 | E15: 960
A16: 13 | B16: 0388硒鼓 | C16: 4 | D16: 240 | E16: 960
A17: 14 | B17: 电脑主机电源 | C17: 1 | D17: 330 | E17: 330
A18: 15 | B18: 1610碳粉 | C18: 10 | D18: 60 | E18: 600
A19: 16 | B19: 2612碳粉 | C19: 8 | D19: 60 | E19: 480
A20: 17 | B20: 0388碳粉 | C20: 8 | D20: 60 | E20: 480
A21: 18 | B21: 013碳粉 | C21: 5 | D21: 60 | E21: 300
A22: 19 | B22: 2451硒鼓 | C22: 1 | D22: 260 | E22: 260
A23: 20 | B23: 1TB 电脑硬盘 | C23: 1 | D23: 580 | E23: 580
A24: 21
A25: 22
A26: 合计 | C26: =SUM(E4:E25) -> 9603
A27: 单位验收人签名：

Sheet 5647元 (hidden)
A1: 送 货 单
A2: 单位名称：洛浦县布亚乡卫生院 | E2: 申请日期：
A3: 序号 | B3: 货名 | C3: 数量 | D3: 单价 | E3: 金额 | F3: 用途
A4: 1 | B4: 0388碳粉 | C4: 7 | D4: 50 | E4: =D4*C4 -> 350
A5: 2 | B5: 1610碳粉 | C5: 5 | D5: 50 | E5: 250
A6: 3 | B6: 惠普M436定影组件 | C6: 1 | D6: 1380 | E6: 1380
A7: 4 | B7: 680彩色墨盒 | C7: 1 | D7: 290 | E7: 290
A8: 6 | B8: 680黑色墨盒 | C8: 1 | D8: 290 | E8: 290
A9: 7 | B9: 爱国者扩音机 | C9: 1 | D9: 380 | E9: 380
A10: 8 | B10: 德胜扩音机 | C10: 1 | D10: 560 | E10: 560
A11: 9 | B11: 处理器散热器 | C11: 1 | D11: 95 | E11: 95
A12: 10 | B12: 630色带支架 | C12: 2 | D12: 46 | E12: 92
A13: 11 | B13: 220S 硒鼓 | C13: 2 | D13: 320 | E13: 640
B14: 打印机定影膜 | C14: 1 | D14: 240 | E14: 240
A15: 12 | B15: 0388硒鼓 | C15: 3 | D15: 240 | E15: 720
A16: 13 | B16: CH256C碳粉盒 | C16: 1 | D16: 360 | E16: 360
A17: 22
A18: 合计 | C18: =SUM(E4:E17) -> 5647
A19: 单位验收人签名：

Sheet 6389元 (hidden)
A1: 送 货 单
A2: 单位名称：洛浦县布亚乡卫生院 | E2: 申请日期：
A3: 序号 | B3: 货名 | C3: 数量 | D3: 单价 | E3: 金额 | F3: 备注
A4: 1 | B4: 2451粉盒 | C4: 7 | D4: 255 | E4: =D4*C4 -> 1785
A5: 2 | B5: 0388碳粉 | C5: 25 | D5: 50 | E5: 1250
A6: 3 | B6: 013碳粉 | C6: 33 | D6: 50 | E6: 1650
A7: 4 | B7: 1600色带支架 | C7: 19 | D7: 46 | E7: 874
A8: 6 | B8: 键盘鼠标套件 | C8: 1 | D8: 90 | E8: 90
A9: 7 | B9: 0388硒鼓 | C9: 2 | D9: 240 | E9: 480
A10: 8 | B10: 2451硒鼓 | C10: 1 | D10: 260 | E10: 260
A11: 21
A12: 22
A13: 合计 | C13: =SUM(E4:E12) -> 6389
A14: 单位验收人签名：

Sheet 2000元 (hidden)
A1: 送 货 单
A2: 单位名称：洛浦县布亚乡卫生院 | E2: 申请日期：
A3: 序号 | B3: 货名 | C3: 数量 | D3: 单价 | E3: 金额 | F3: 备注
A4: 1 | B4: 得胜医保卡阅读器 | C4: 1 | D4: 2000 | E4: =D4*C4 -> 2000
A5: 2
A6: 3
A7: 4
A8: 6
A9: 7
A10: 8
A11: 22
A12: 合计 | C12: =SUM(E4:E11) -> 2000
A13: 单位验收人签名：

Sheet 7702元 (hidden)
A1: 送 货 单
A2: 单位名称：洛浦县布亚乡卫生院 | E2: 申请日期：
A3: 序号 | B3: 货名 | C3: 数量 | D3: 单价 | E3: 金额 | F3: 备注
A4: 1 | B4: 鼠标 | C4: 2 | D4: 40 | E4: =D4*C4 -> 80
A5: 2 | B5: 2451粉盒 | C5: 3 | D5: 255 | E5: 765
A6: 3 | B6: 0388碳粉 | C6: 28 | D6: 50 | E6: 1400
A7: 4 | B7: 1610碳粉 | C7: 6 | D7: 50 | E7: 300
A8: 5 | B8: 2612碳粉 | C8: 8 | D8: 50 | E8: 400
A9: 6 | B9: 630色带支架 | C9: 2 | D9: 46 | E9: 92
A10: 7 | B10: 206硒鼓 | C10: 1 | D10: 240 | E10: 240
A11: 8 | B11: 键盘鼠标套件 | C11: 1 | D11: 90 | E11: 90
A12: 9 | B12: 2612硒鼓 | C12: 4 | D12: 240 | E12: 960
A13: 10 | B13: 0388硒鼓 | C13: 13 | D13: 240 | E13: 3120
A14: 11 | B14: 2451硒鼓 | C14: 1 | D14: 255 | E14: 255
A15: 12
A16: 13
A17: 合计 | C17: =SUM(E4:E16) -> 7702
A18: 单位验收人签名：

Sheet 2155元 (hidden)
A1: 送 货 单
A2: 单位名称：洛浦县布亚乡卫生院 | E2: 日期：
A3: 序号 | B3: 货名 | C3: 数量 | D3: 单价 | E3: 金额 | F3: 备注
A4: 1 | B4: 惠普1106打印机碳粉（JT-T0388) | C4: 4 | D4: 50 | E4: =D4*C4 -> 200
A5: 2 | B5: 奔图打印机碳粉(JT-T1610A) | C5: 5 | D5: 50 | E5: 250
A6: 3 | B6: 兄弟一体机碳粉（JT-TL013A)` | C6: 3 | D6: 50 | E6: 150
A7: 4 | B7: 震旦addt-220硒鼓芯片 | C7: 2 | D7: 50 | E7: 100
A8: 5 | B8: 680原装黑色墨盒 | C8: 1 | D8: 290 | E8: 290
A9: 6 | B9: 680彩色原装墨盒 | C9: 1 | D9: 290 | E9: 290
A10: 7 | B10: PD-206硒鼓 | C10: 1 | D10: 280 | E10: 280
A11: 8 | B11: 震旦addt-220硒鼓 | C11: 3 | D11: 280 | E11: 840
A12: 9 | B12: 打印机硒鼓（JT-C0388) | C12: 3 | D12: 220 | E12: 660
A13: 10 | B13: HDMI 高清光端机（一对） | C13: 1 | D13: 1450 | E13: 1450
A14: 11 | B14: HDMI 高清线（10米） | C14: 1 | D14: 165 | E14: 165
A15: 12 | B15: HDMI 高清线（5米） | C15: 1 | D15: 85 | E15: 85
A16: 13 | B16: 电视支架（26*65英寸） | C16: 1 | D16: 70 | E16: 70
A17: 14 | B17: VGA TOHDMI转换器 | C17: 1 | D17: 230 | E17: 230
A18: 15 | B18: VGA 分配器一份二 | C18: 1 | D18: 135 | E18: 135
A19: 16 | B19: VGA 线 | C19: 1 | D19: 20 | E19: 20
A20: 17
A21: 合计 | C21: =SUM(E4:E20) -> 5215
A22: 单位验收人签名： 送货人签字：

Sheet 1270元 (hidden)
A1: 送 货 单
A2: 单位名称：洛浦县布亚乡卫生院 | E2: 日期：
A3: 序号 | B3: 货名 | C3: 数量 | D3: 单价 | E3: 金额 | F3: 备注
A4: 1 | B4: 惠普打印机碳粉（JT-T0388) | C4: 6 | D4: 50 | E4: =D4*C4 -> 300
A5: 2 | B5: 兄弟7080D 一体机碳粉 | C5: 3 | D5: 50 | E5: 150
A6: 3 | B6: USB HUB 网口转换器 | C6: 2 | D6: 70 | E6: 140
A7: 4 | B7: 惠普1106打印机硒鼓 | C7: 2 | D7: 220 | E7: 440
A8: 5 | B8: 兄弟7080D一体机硒鼓 | C8: 1 | D8: 240 | E8: 240
A9: 6
A10: 合计 | C10: =E8+E7+E6+E5+E4 -> 1270
A11: 单位验收人签名： 送货人签字：

Sheet 5666元 (hidden)
A1: 送 货 单
A2: 单位名称：洛浦县布亚乡卫生院 | E2: 日期：
A3: 序号 | B3: 货名 | C3: 数量 | D3: 单价 | E3: 金额 | F3: 备注
A4: 1 | B4: 六类水晶头 | C4: 1 | D4: 160 | E4: =D4*C4 -> 160
A5: 2 | B5: 子弹头10位插线板 | C5: 4 | D5: 76 | E5: 304
A6: 3 | B6: 8口千兆交换机 | C6: 2 | D6: 320 | E6: 640
A7: 4 | B7: 六类网络网线 | C7: 618 | D7: 6 | E7: 3708
A8: 5 | B8: 2芯电线 | C8: 13 | D8: 5 | E8: 65
A9: 6 | B9: 不锈钢地板电线槽（2MM) | C9: 13 | D9: 38 | E9: 494
B10: 不锈钢地板电线槽（3MM) | C10: 2 | D10: 45 | E10: 90
B11: 20MM*10MM PVC 压条 | C11: 41 | D11: 5 | E11: 205
A14: 合计 | C14: =SUM(E4:E13) -> 5666
A15: 单位验收人签名： 送货人签字：

Sheet 2024年 (hidden)
A1: 送 货 单
A2: 单位名称：洛浦县布亚乡卫生院 | E2: 日期：
A3: 序号 | B3: 货名 | C3: 数量 | D3: 单价 | E3: 金额 | F3: 备注
A4: 1 | B4: 013A碳粉 | C4: 20 | D4: 20.83 | E4: =D4*C4 -> 416.6
A5: 2 | B5: 0388碳粉 | C5: 20 | D5: 20.83 | E5: 416.6
A6: 3 | B6: HP1106定影组件 | C6: 1 | D6: 197.57 | E6: 197.57
A7: 4 | B7: 打印机主板 | C7: 1 | D7: 282.24 | E7: 282.24
A8: 5
A9: 6
A14: 合计 | C14: =SUM(E4:E13) -> 1313.01
A15: 单位验收人签名： 送货人签字：

Sheet 杭桂镇 (hidden)
A1: 洛浦县创凯电脑部
A2: 地址：洛浦县双拥路16号 电话：13070075223
A3: 送货单
A4: 客户名称：洛浦县杭桂镇卫生院 客户地址：洛浦县杭桂镇文化路6号 | F4: 送货日期: 2024 年 1 月 16 日
A5: 序号 | B5: 产品货名 | C5: 规格 | D5: 单位 | E5: 数量 | F5: 单价 | G5: 金额 | H5: 备注
A6: 1 | B6: 档案盒 | C6: 75mm | D6: 个 | E6: 110 | F6: 12.5 | G6: =F6*E6 -> 1375
A7: 2 | B7: 档案盒 | C7: 55MM | D7: 个 | E7: 90 | F7: 9 | G7: 810
A8: 3 | B8: 拉杆夹 | C8: 大号 | D8: 个 | E8: 330 | F8: 1.9 | G8: 627
A9: 4 | B9: 拉杆夹 | C9: 中号 | D9: 个 | E9: 150 | F9: 1.2 | G9: 180
A10: 5 | B10: 拉杆夹 | C10: 小号 | D10: 个 | E10: 50 | F10: 1 | G10: 50
A11: 6 | B11: 彩色纸（1包100张） | C11: 蓝色，硬 | D11: 包 | E11: 6 | F11: 25 | G11: 150
A12: 7 | B12: 彩色纸（1包100张） | C12: 粉色，硬 | D12: 包 | E12: 9 | F12: 25 | G12: 225
A13: 8 | B13: 彩色纸（1包100张） | C13: 红色，软 | D13: 包 | E13: 10 | F13: 20 | G13: 200
A14: 9 | B14: 彩色纸（1包100张） | C14: 紫色，软 | D14: 包 | E14: 2 | F14: 20 | G14: 40
A15: 10 | B15: 彩色纸（1包100张） | C15: 黄色，软 | D15: 包 | E15: 8 | F15: 20 | G15: 160
A16: 11 | B16: 彩色纸（1包100张） | C16: 绿色，软 | D16: 包 | E16: 5 | F16: 20 | G16: 100
A17: 12 | B17: 彩色纸（1包100张） | C17: 橙色，软 | D17: 包 | E17: 5 | F17: 20 | G17: 100
A18: 13 | B18: 中性笔（0.5） | C18: 黑色 | D18: 盒 | E18: 30 | F18: 11 | G18: 330
A19: 14 | B19: 彩色长尾夹（大） | C19: 51MM | D19: 盒 | E19: 6 | F19: 16 | G19: 96
A20: 15 | B20: 彩色长尾夹（中） | C20: 15MM | D20: 盒 | E20: 6 | F20: 14 | G20: 84
A21: 16 | B21: 宽胶带 | C21: 60MM | D21: 卷 | E21: 3 | F21: 8 | G21: 24
A22: 17 | B22: 订书机 | C22: 425 | D22: 个 | E22: 5 | F22: 12 | G22: 60
A23: 18 | B23: 订书机针 | C23: 常规 | D23: 盒 | E23: 25 | F23: 2.5 | G23: 62.5
A24: 19 | B24: A4纸（一箱8包70g) | C24: 尖兵 | D24: 箱 | E24: 57 | F24: 177 | G24: 10089
A25: 20 | B25: 回形针 | C25: 常规 | D25: 盒 | E25: 5 | F25: 3 | G25: 15
A26: 21 | B26: 胶水 | C26: 125ML | D26: 瓶 | E26: 60 | F26: 4 | G26: 240
A27: 22 | B27: A5纸（一箱16包70G ) | C27: 玉纸 | D27: 箱 | E27: 42 | F27: 169 | G27: 7098
A28: 合计(大写):贰万贰仟壹佰伍拾伍元伍角元整 | E28: 合计： | F28: =SUM(G6:G27) -> 22115.5
A29: 送货单位及经手人签章: | D29: 收货单位及经手人签章:
F30: 年 月 日
A31: 注:以上货品请核对清楚，如有质量问题，型号规格不符合请在3日内致电告知本公司，谢谢!

Sheet Sheet1 (2)
A1: 布亚乡卫生院卫生院监控设备采购预算表
A3: 序号 | B3: 货物名称及规格 | C3: 单位 | D3: 数量 | E3: 单价（元） | F3: 总价（元） | G3: 备注
A4: 1 | B4: 8TB 监控硬盘 | C4: 快 | D4: 3 | E4: 1250 | F4: =E4*D4 -> 3750
A5: 2 | B5: 电梯专用监控（400万） | C5: 台 | D5: 4 | E5: 580 | F5: 2320
A6: 3 | B6: 无限网桥（电梯专用） | C6: 对 | D6: 4 | E6: 530 | F6: 2120
A7: 4 | B7: 监控电源（12V ） | C7: 个 | D7: 4 | E7: 60 | F7: 240
A8: 5 | B8: 2芯电源线（2.5平方） | C8: 米 | D8: 100 | E8: 3 | F8: 300
A9: 6 | B9: 超五类网络线 | C9: 米 | D9: 100 | E9: 3 | F9: 300
A10: 7 | B10: 8口千兆交换机 | C10: 台 | D10: 1 | E10: 265 | F10: 265
A11: 8
A12: 合计 | D12: =SUM(F4:F11) -> 9295

Sheet Sheet1 (3)
A1: 布亚乡卫生院卫生院监控设备采购预算表
A3: 序号 | B3: 货物名称及规格 | C3: 单位 | D3: 数量 | E3: 单价（元） | F3: 总价（元） | G3: 备注
A4: 2 | B4: 400万网络摄像头 | C4: 台 | D4: 9 | E4: 580 | F4: =E4*D4 -> 5220
A5: 3 | B5: 监控电源（12V ） | C5: 个 | D5: 9 | E5: 60 | F5: 540
A6: 4 | B6: 2芯电源线（2.5平方） | C6: 米 | D6: 250 | E6: 3 | F6: 750
A7: 5 | B7: 超五类网络线 | C7: 米 | D7: 250 | E7: 3 | F7: 750
A8: 6 | B8: 8口千兆交换机 | C8: 台 | D8: 2 | E8: 265 | F8: 530
A9: 8 | B9: 防水箱子（电源使用） | C9: 个 | D9: 9 | E9: 35 | F9: 315
A10: 8 | B10: PVC 25MM 管子 | C10: 跟 | D10: 25 | E10: 8 | F10: 200
A11: 合计 | D11: =SUM(F4:F9) -> 8105

Sheet Sheet1 (4)
A1: 布亚乡卫生院卫生院监控设备采购预算表
A3: 序号 | B3: 货物名称及规格 | C3: 单位 | D3: 数量 | E3: 备注
A4: 1 | B4: 8TB 监控硬盘 | C4: 快 | D4: 3
A5: 2 | B5: 电梯专用监控（400万） | C5: 台 | D5: 4
A6: 2 | B6: 400万网络摄像头 | C6: 台 | D6: 9
A7: 3 | B7: 无限网桥（电梯专用） | C7: 对 | D7: 4
A8: 3 | B8: 监控电源（12V ） | C8: 个 | D8: 13
A9: 4 | B9: 2芯电源线（2.5平方） | C9: 米 | D9: 350
A10: 5 | B10: 超五类网络线 | C10: 米 | D10: 350
A11: 6 | B11: 8口千兆交换机 | C11: 台 | D11: 3
A12: 8 | B12: 防水箱子（电源使用） | C12: 个 | D12: 9
A13: 8 | B13: PVC 25MM 管子 | C13: 跟 | D13: 25
A14: 合计 | D14: 9700
